[Event "Mitropa Cup Women 2024"]
[Site "Apolda"]
[Date "2024.02.22"]
[Round "8.16"]
[White "Rybackova, Lucie"]
[Black "Blanquet, Camille"]
[Result "1/2-1/2"]
[ECO "D02"]
[WhiteElo "1970"]
[BlackElo "2023"]
[Annotator "RC"]
[PlyCount "109"]
[EventDate "2024.02.15"]
[EventType "team-tourn"]
[EventCountry "GER"]
[SourceTitle "playchess.com"]
[Source "ChessBase"]
[SourceQuality "1"]
[WhiteTeam "Czech Republic"]
[BlackTeam "France"]
[WhiteTeamCountry "CZE"]
[BlackTeamCountry "FRA"]
[TimeControl "40/5400+30:1800+30"]

1. d4 {[%emt 1:31:00]} Nf6 {[%emt 0:00:10]} 2. Nf3 {[%emt 0:00:00]} e6 {[%emt 0:00:12]} 3. g3 {[%emt 0:00:00]} d5 {[%emt 0:00:17]} 4. Bg2 {[%emt 0:00:00]} h6 {[%emt 0:00:36]} 5. O-O {[%emt 0:00:00]} Bd6 {[%emt 0:00:12]} 6. c4 {[%emt 0:00:00]} O-O {[%emt 0:00:16]} 7. b3 {[%emt 0:00:00]} b6 {[%emt 0:00:22]} 8. Bb2 {[%emt 0:00:00]} Bb7 {[%emt 1:32:25]} 9. Nc3 {[%emt 0:00:00]} Nbd7 {[%emt 0:00:00]} 10. Rc1 {[%emt 0:00:00]} Re8 {[%emt 0:00:00]} 11. e3 {[%emt 0:00:00]} a6 {[%emt 0:00:00]} 12. Qc2 {[%emt 0:00:00]} Rc8 {[%emt 0:00:00]} 13. Qb1 {[%emt 0:00:00]} Qe7 {[%emt 0:00:00]} 14. Rfd1 {[%emt 0:00:00]} c5 {[%emt 0:00:00]} 15. dxc5 {[%emt 0:00:00]} Nxc5 {[%emt 0:00:00]} 16. cxd5 {[%emt 0:00:00]} Nxd5 {[%emt 0:00:00]} 17. Nxd5 {[%emt 0:00:00]} Bxd5 {[%emt 0:00:00]} 18. Qa1 {[%emt 0:00:00]} f5 {[%emt 0:00:00]} 19. Ne5 {[%emt 0:00:00]} Bxg2 {[%emt 0:00:00]} 20. Kxg2 {[%emt 0:00:00]} Ne4 {[%emt 0:00:00]} 21. f3 {[%emt 0:00:00]} Bxe5 {[%emt 0:00:00]} 22. Bxe5 {[%emt 0:00:00]} Nf6 {[%emt 0:00:00]} 23. Bxf6 {[%emt 0:00:00]} Qxf6 {[%emt 0:00:00]} 24. Qxf6 {[%emt 0:00:00]} gxf6 {[%emt 0:00:00]} 25. Kf2 {[%emt 0:00:00]} Kf7 {[%emt 0:00:00]} 26. Rd7+ {[%emt 0:00:00]} Kg6 {[%emt 0:00:00]} 27. Rcc7 {[%emt 0:00:00]} Rxc7 {[%emt 0:00:00]} 28. Rxc7 {[%emt 0:00:00]} Rd8 {[%emt 0:00:00]} 29. Ke2 {[%emt 0:00:00]} Rd6 {[%emt 0:00:00]} 30. a3 {[%emt 0:00:00]} e5 {[%emt 0:00:00]} 31. Rc8 {[%emt 0:02:26]} e4 {[%emt 0:00:00]} 32. Rc4 {[%emt 0:03:54]} Rd3 {[%emt 0:00:00]} 33. Rb4 {[%emt 0:00:24]} b5 {[%emt 0:00:00]} 34. a4 {[%emt 0:02:15]} bxa4 {[%emt 0:00:00]} 35. bxa4 {[%emt 0:00:12]} Ra3 {[%emt 0:00:00]} 36. fxe4 {[%emt 0:00:23]} fxe4 {[%emt 0:00:00]} 37. Rxe4 {[%emt 0:00:27]} Kf5 {[%emt 0:00:00]} 38. Kf3 {[%emt 0:00:35]} Ra2 {[%emt 0:00:00]} 39. Rc4 {[%emt 0:01:42]} Kg6 {[%emt 0:00:00]} 40. h3 {[%emt 0:03:26]} h5 41. Rd4 {[%emt 0:34:16]} Kf7 {[%emt 0:28:59]} 42. Rc4 {[%emt 0:00:30]} Kg6 {[%emt 0:18:01]} 43. e4 {[%emt 0:00:30]} Ra3+ {[%emt 0:00:30]} 44. Kf4 {[%emt 0:00:30]} Ra1 {[%emt 0:00:30]} 45. h4 {[%emt 0:00:00]} Ra3 {[%emt 0:00:00]} 46. Rd4 {[%emt 0:00:00]} Ra1 {[%emt 0:00:00]} 47. Kf3 {[%emt 0:00:00]} Ra3+ {[%emt 0:00:00]} 48. Kf4 {[%emt 0:00:00]} Ra1 {[%emt 0:00:00]} 49. Rc4 {[%emt 0:00:00]} Ra3 {[%emt 0:00:00]} 50. Rb4 {[%emt 0:00:00]} Ra1 {[%emt 0:00:00]} 51. Ke3 {[%emt 0:00:00]} Ra3+ {[%emt 0:00:00]} 52. Kf4 {[%emt 0:00:00]} Ra1 {[%emt 0:00:00]} 53. Rd4 {[%emt 0:00:00]} Ra3 {[%emt 0:00:00]} 54. Rc4 {[%emt 0:00:00]} Ra1 {[%emt 0:00:00]} 55. Rd4 {[%emt 0:00:00]} 1/2-1/2

[Event "Mitropa Cup Women 2024"]
[Site "Apolda"]
[Date "2024.02.22"]
[Round "8.17"]
[White "Heinemann, Josefine"]
[Black "Urh, Zala"]
[Result "0-1"]
[ECO "C90"]
[WhiteElo "2361"]
[BlackElo "2290"]
[Annotator "TA"]
[PlyCount "74"]
[EventDate "2024.02.15"]
[EventType "team-tourn"]
[EventCountry "GER"]
[SourceTitle "playchess.com"]
[Source "ChessBase"]
[SourceQuality "1"]
[WhiteTeam "Germany"]
[BlackTeam "Slovenia"]
[WhiteTeamCountry "GER"]
[BlackTeamCountry "SLO"]
[TimeControl "40/5400+30:1800+30"]

{[%evp 25,74,19,29,12,24,0,6,0,0,0,45,43,42,16,49,50,35,10,10,0,0,0,0,0,0,-197,-212,-206,-194,-417,-406,-422,-431,-520,-527,-608,-611,-780,-744,-764,-764,-1006,-975,-29986,-29987,-29994,-29995,-29995,-29996,-29996,-29997]} 1. e4 {[%emt 0:00:02]} e5 {[%emt 0:00:11]} 2. Nf3 {[%emt 0:00:06]} Nc6 {[%emt 0:00:03]} 3. Bb5 {[%emt 0:00:05]} a6 {[%emt 0:00:41]} 4. Ba4 {[%emt 0:00:05]} Nf6 {[%emt 0:00:10]} 5. d3 {[%emt 0:00:28]} b5 {[%emt 0:07:56]} 6. Bb3 {[%emt 0:00:06]} Be7 {[%emt 0:00:04]} 7. O-O {[%emt 0:00:45]} O-O {[%emt 0:04:31]} 8. Re1 {[%emt 0:03:45]} Bb7 {[%emt 0:19:09]} 9. a4 {[%emt 0:01:48]} d6 {[%emt 0:08:10]} 10. c3 {[%emt 0:01:30]} Na5 {[%emt 0:01:32]} 11. Bc2 {[%emt 0:02:37]} c5 {[%emt 0:00:07]} 12. Nbd2 {[%emt 0:01:13][%cal Bb1d2,Bd2f1,Bf1g3][%mdl 32]} Nc6 {[%emt 0:02:54]} 13. Nf1 {[%emt 0:05:14]} Re8 {[%emt 0:01:59]} 14. Ng3 {[%emt 0:01:44]} Bf8 {[%emt 0:08:14]} 15. h3 {[%emt 0:08:50]} h6 {[%emt 0:03:18]} 16. d4 {[%emt 0:05:37] The position is equal.} exd4 {[%emt 0:22:14]} 17. cxd4 {[%emt 0:01:15]} Nb4 {[%emt 0:00:04]} 18. Bb1 {[%emt 0:00:42]} cxd4 {[%emt 0:03:52]} 19. Nxd4 {[%emt 0:06:04]} d5 {[%emt 0:00:57]} 20. e5 {[%emt 0:07:04]} (20. axb5 dxe4 21. bxa6 Qb6 $11) 20... Ne4 {[%emt 0:00:06]} 21. Qg4 {[%emt 0:01:29] White wants to play Ngf5.} (21. axb5 Bc5 $16) 21... Rxe5 {[%emt 0:04:18]} 22. Ndf5 {[%emt 0:05:04]} (22. Bxh6 $2 {too greedy.} Nf6 23. Qd1 Rxe1+ 24. Qxe1 gxh6 $19) 22... Kh8 {[%emt 0:01:08]} 23. Be3 {[%emt 0:04:16][%cal Of5h6]} Nxg3 {[%emt 0:02:52]} 24. Qxg3 {[%emt 0:02:10]} Qf6 {[%emt 0:01:30]} 25. Rd1 $2 {[%emt 0:11:02] [#]} (25. axb5 $11 {and White is okay.} Bc8 (25... Rxf5 26. Qc7 $14) 26. Nd4) 25... Rxf5 $19 {[%emt 0:02:31]} 26. Bxf5 {[%emt 0:00:33]} Qxf5 {[%emt 0:00:04]} 27. Qc7 {[%emt 0:00:05] Prevents Nc2} (27. axb5 Rc8 (27... axb5 $2 {loses.} 28. Rxa8 Bxa8 29. Qb8 $18) 28. Ra5) 27... Bc6 {[%emt 0:01:52]} 28. axb5 {[%emt 0:01:39]} Bxb5 {[%emt 0:00:45]} 29. Rac1 {[%emt 0:00:10]} Nd3 {[%emt 0:01:31]} 30. Qb7 {[%emt 0:02:37]} Re8 {[%emt 0:00:04]} 31. Rc7 {[%emt 0:00:37]} Kg8 {[%emt 0:00:02][%cal Oe8e3] [#] White must now prevent ...Rxe3!} 32. Qb6 {[%emt 0:02:51]} Nxb2 {[%emt 0:01:10]} 33. Rd4 {[%emt 0:01:58]} Nc4 {[%emt 0:00:05]} 34. Qb7 {[%emt 0:01:02]} Nxe3 {[%emt 0:00:50] Black mates.} 35. fxe3 {[%emt 0:01:47]} Qf1+ {[%emt 0:00:07]} 36. Kh2 {[%emt 0:00:09]} Bd6+ {[%emt 0:00:09]} 37. Rf4 {[%emt 0:00:08]} Bxf4+ {[%emt 0:00:16] Weighted Error Value: White=0.99/Black=0.04 (flawless) .  Loses game:     	White=1     	---        Mistake:       	White=1     	---        Inaccurate:     	White=1     	Black=2      OK:         	White=2     	Black=8      Best:        	White=1     	Black=4} 0-1

[Event "Mitropa Cup Women 2024"]
[Site "Apolda"]
[Date "2024.02.22"]
[Round "8.18"]
[White "Shpanko, Nadiia"]
[Black "Klek, Hanna Marie"]
[Result "0-1"]
[ECO "D32"]
[WhiteElo "2179"]
[BlackElo "2284"]
[Annotator "TA"]
[PlyCount "50"]
[EventDate "2024.02.15"]
[EventType "team-tourn"]
[EventCountry "GER"]
[SourceTitle "playchess.com"]
[Source "ChessBase"]
[SourceQuality "1"]
[WhiteTeam "Slovenia"]
[BlackTeam "Germany"]
[WhiteTeamCountry "SLO"]
[BlackTeamCountry "GER"]
[TimeControl "40/5400+30:1800+30"]

{[%evp 16,50,15,4,8,13,7,5,13,-36,-39,-129,-135,-208,-192,-176,-181,-323,-271,-657,-527,-1155,-1079,-883,-810,-1087,-1058,-1025,-1313,-1302,-412,-1309,-1192,-1975,-2000,-1851,-1839]} 1. Nf3 {[%emt 0:00:04]} d5 {[%emt 0:00:06]} 2. e3 {[%emt 0:00:18]} Nf6 {[%emt 0:00:21]} 3. c4 {[%emt 0:01:39]} e6 {[%emt 0:00:28]} 4. Nc3 {[%emt 0:00:31]} c5 {[%emt 0:00:40]} 5. cxd5 {[%emt 0:01:29]} exd5 {[%emt 0:00:38]} 6. d4 {[%emt 0:00:23]} Nc6 {[%emt 0:06:06]} 7. Bb5 {[%emt 0:01:34]} cxd4 {[%emt 0:03:58]} 8. Nxd4 {[%emt 0:01:47]} Bd7 {[%emt 0:01:24]} 9. O-O {[%emt 0:04:14]} Bd6 {[%emt 0:01:23]} 10. Nf3 {[%emt 0:09:13][%cal Oe3e4]} Bg4 {[%emt 0:08:18]} 11. h3 {[%emt 0:00:55]} (11. Nxd5 $2 Nxd5 12. e4 Nde7 $19) 11... Bh5 {[%emt 0:00:51] The position is equal.} 12. g4 {[%emt 0:04:33]} (12. Nxd5 $2 Nxd5 13. b3 (13. Qxd5 $2 Bh2+ 14. Kxh2 Qxd5 $19) 13... O-O $19) (12. Be2 $11) 12... Bg6 $15 {[%emt 0:01:24]} 13. g5 {[%emt 0:06:09]} (13. Nxd5 $2 Nxd5 14. e4 (14. Qxd5 $2 Bh2+ 15. Nxh2 Qxd5 $19) 14... Nc7 (14... Bxe4 $2 15. Re1 $19) 15. Bxc6+ bxc6 $19) ({White should play} 13. Kg2 $15) 13... Ne4 $17 {[%emt 0:09:18]} 14. Qxd5 {[%emt 0:11:48] [#]} (14. Nd4 $17 {was called for.} O-O (14... Qxg5+ 15. Qg4 $14) 15. Qg4) 14... O-O $1 $19 {[%emt 0:04:02] Strongly threatening ...Nxc3.} 15. Bxc6 {[%emt 0:10:01]} (15. Nxe4 $2 Bh2+ 16. Nxh2 Qxd5 17. Bxc6 bxc6 $19) 15... bxc6 {[%emt 0:01:06]} 16. Qd4 {[%emt 0:07:37]} (16. Qd1 {was the only chance.}) 16... Qe7 {[%emt 0:10:44]} ({But not} 16... Nxg5 17. Nxg5 Qxg5+ 18. Qg4 $19) 17. h4 $2 {[%emt 0:07:32]} (17. Qc4) 17... Rad8 {[%emt 0:03:03]} 18. Qc4 {[%emt 0:02:02] [#]} Qd7 $1 {[%emt 0:02:34]} 19. Ne1 {[%emt 0:02:53] [#]} Qh3 $1 {[%emt 0:02:30][%csl Gd6][%cal Rh3h2]} 20. f4 {[%emt 0:00:28]} Ng3 {[%emt 0:01:02]} 21. Ng2 {[%emt 0:02:16] [#]} Bb4 $1 {[%emt 0:03:14][%mdl 512]} 22. Qxb4 {[%emt 0:06:30]} Qh1+ {[%emt 0:00:19]} 23. Kf2 {[%emt 0:00:02]} Nxf1 {[%emt 0:00:12] Black is clearly winning.} (23... Qxf1+ 24. Kxg3 a5 25. Qc5 $11) 24. b3 {[%emt 0:08:59]} Nh2 {[%emt 0:04:02] ( -> ...Ng4+)} 25. f5 {[%emt 0:01:27]} Bh5 {[%emt 0:02:10] White got outplayed after the opening.   Weighted Error Value: White=1.15/Black=0.11 (very precise) .  Mistake:       	White=5     	---        Inaccurate:     	White=2     	---        OK:         	White=2     	Black=4      Best:        	---       	Black=1      Strong:       	---       	Black=1} 0-1

[Event "Mitropa Cup Women 2024"]
[Site "Apolda"]
[Date "2024.02.22"]
[Round "8.19"]
[White "Schulze, Lara"]
[Black "Vidic, Teja"]
[Result "1-0"]
[ECO "C64"]
[WhiteElo "2285"]
[BlackElo "2132"]
[Annotator "TA"]
[PlyCount "115"]
[EventDate "2024.02.15"]
[EventType "team-tourn"]
[EventCountry "GER"]
[SourceTitle "playchess.com"]
[Source "ChessBase"]
[SourceQuality "1"]
[WhiteTeam "Germany"]
[BlackTeam "Slovenia"]
[WhiteTeamCountry "GER"]
[BlackTeamCountry "SLO"]
[TimeControl "40/5400+30:1800+30"]

{[%evp 10,115,74,36,36,51,51,39,40,33,36,25,35,41,50,29,56,43,49,52,49,33,44,40,48,50,104,101,114,38,21,20,76,0,10,-64,-87,-139,-32,-69,-20,-31,21,0,0,0,0,0,0,0,0,0,0,0,0,0,0,0,0,0,0,-69,31,49,36,50,286,237,110,96,99,0,203,191,1218,1262,927,941,1661,1563,2105,1833,2293,2185,29963,29965,29966,29967,29970,29970,29970,29969,29969,29969,29977,29978,29978,29979,29979,29980,29980,29981,29981,29981,29981,29982,29988,29979]} 1. e4 {[%emt 0:00:01]} e5 {[%emt 0:00:05]} 2. Nf3 {[%emt 0:00:04]} Nc6 {[%emt 0:00:05]} 3. Bb5 {[%emt 0:00:04]} a6 {[%emt 0:00:07]} 4. Ba4 {[%emt 0:00:05]} Bc5 {[%emt 0:00:05]} 5. O-O {[%emt 0:05:57]} Nge7 {[%emt 0:00:05]} 6. c3 {[%emt 0:02:10]} (6. Nxe5 $5 Nxe5 7. d4 $14) 6... Ba7 {[%emt 0:00:14]} 7. d4 {[%emt 0:03:27]} Ng6 {[%emt 0:00:06]} 8. Bg5 {[%emt 0:05:17]} f6 {[%emt 0:00:06] Weiß steht etwas besser.} 9. Be3 {[%emt 0:00:10]} O-O {[%emt 0:00:07]} 10. Nbd2 {[%emt 0:01:37]} d6 {[%emt 0:00:08]} 11. Re1 {[%emt 0:04:08]} Kh8 {[%emt 0:00:05]} 12. Bb3 {[%emt 0:06:13]} Qe8 {[%emt 0:22:39]} 13. h3 {[%emt 0:04:44]} Nd8 {[%emt 0:07:04]} 14. Nf1 {[%emt 0:04:51]} exd4 {[%emt 0:12:14]} 15. cxd4 {[%emt 0:05:17]} Qxe4 {[%emt 0:03:30]} 16. Rc1 {[%emt 0:10:48][%cal Oe3d2]} Qe7 {[%emt 0:03:29]} 17. d5 {[%emt 0:06:43] Droht Bxa7 und aus.} Qd7 {[%emt 0:10:21]} (17... Bxe3 $14 18. Rxe3 Qd7) 18. Bxa7 $16 {[%emt 0:05:47]} Rxa7 {[%emt 0:00:06] [#]} 19. Nd4 {[%emt 0:03:36]} ({Günstiger ist} 19. Bc2 $1 $16 {Zielt auf Ng3 ab.} c5 20. dxc6 Nxc6 21. Ne3) 19... c5 $14 {[%emt 0:06:19]} 20. Ne6 {[%emt 0:02:51]} Re8 {[%emt 0:00:29]} (20... Nxe6 $11 21. dxe6 Qd8) 21. Qh5 {[%emt 0:05:00] Weiß steht deutlich aktiver. Die schwarzen Türme stehen passiv.} (21. Ng3 $16) 21... Qf7 $11 {[%emt 0:06:18]} 22. Nxd8 {[%emt 0:09:43]} (22. Ng3 $11 Nxe6 23. dxe6 Bxe6 24. Rxe6 Rxe6 25. Qf5) 22... Rxd8 $15 {[%emt 0:00:07]} 23. Re3 {[%emt 0:01:29]} (23. Bc2 $142) 23... Re8 {[%emt 0:01:21]} (23... b5 $17 24. Rce1 Rf8) 24. Rce1 {[%emt 0:02:14]} Re5 {[%emt 0:02:50]} (24... Rxe3 $15 {scheint genauer.} 25. Rxe3 b5) 25. Rxe5 $11 {[%emt 0:03:23]} fxe5 {[%emt 0:00:22]} (25... dxe5 $15 26. Bc2 b5) 26. Ng3 {[%emt 0:00:20] Bc2 ist eine echte Drohung.} b5 {[%emt 0:14:20]} 27. Ne4 {[%emt 0:00:13]} Qe7 {[%emt 0:00:30]} 28. Ng5 {[%emt 0:01:02]} Nf8 {[%emt 0:01:19]} 29. f4 {[%emt 0:00:14]} h6 {[%emt 0:00:53]} 30. fxe5 {[%emt 0:03:59][%cal Oe5e6] Und e6! würde nun gewinnen.} Qxg5 {[%emt 0:06:04]} 31. Qe8 $40 {[%emt 0:00:05][%mdl 128] Schwarz muss sich nun genau verteidigen.} Bxh3 {[%emt 0:00:09][%csl Gh3][%cal Rg5g2]} (31... Qf5 $2 32. Rf1 (32. exd6 $2 Rf7 $19) 32... Bd7 33. Rxf5 (33. Qxf8+ Qxf8 34. Rxf8+ Kh7 $18) 33... Bxe8 34. Rxf8+ Kh7 35. Rxe8 $18) 32. Qxf8+ {[%emt 0:00:13]} Kh7 {[%emt 0:00:03]} 33. Qf3 {[%emt 0:02:05]} Bg4 {[%emt 0:00:15]} 34. Bc2+ {[%emt 0:01:20]} g6 {[%emt 0:01:22]} 35. Qg3 {[%emt 0:01:46]} ({Besser ist} 35. Qf2 $11) 35... Bf5 {[%emt 0:02:41]} (35... dxe5 $15 36. Rxe5 Qc1+ 37. Kh2 Qxc2 (37... Qxb2 $2 38. Bxg6+ Kg7 39. Bh5 $18) 38. Qxg4 Qxb2) 36. Qxg5 $14 {[%emt 0:00:27]} hxg5 {[%emt 0:00:04]} 37. exd6 {[%emt 0:00:30][%mdl 4096] Endspiel. Und jetzt Bxf5 wäre schön. KRB-KRB} Ra8 $2 {[%emt 0:01:36]} (37... Bxc2 $2 38. Re7+ Rxe7 39. dxe7 $18) (37... Kg7 $14 38. Bxf5 gxf5) 38. Re7+ {[%emt 0:00:45]} Kh6 {[%emt 0:00:05]} 39. Bxf5 {[%emt 0:00:41]} gxf5 $16 {[%emt 0:00:05] KR-KR} 40. Rc7 {[%emt 0:00:25]} (40. Kf2 $16 Rd8 41. d7) 40... c4 $2 {[%emt 0:01:24] [#] Damit ist Schwarz auf der Verliererstraße.} (40... Kg6 $11 {und Schwarz steht sicher.}) 41. Kf2 $1 $18 {[%emt 0:06:31]} Kh5 $2 {[%emt 0:08:34]} (41... Rd8) 42. Ke3 {[%emt 0:11:03]} Kg4 {[%emt 0:03:05]} 43. Kd4 {[%emt 0:05:50]} Kg3 {[%emt 0:00:27]} 44. Ke5 {[%emt 0:00:48]} f4 {[%emt 0:00:09]} 45. d7 {[%emt 0:02:25] Rc8 wäre nun fies.} Rd8 {[%emt 0:01:25]} 46. Ke6 {[%emt 0:01:54]} Kxg2 {[%emt 0:00:57]} 47. Rc8 {[%emt 0:00:08] Weiß setzt Matt.} Rxd7 {[%emt 0:00:17]} 48. Kxd7 {[%emt 0:00:03] KR-KP} f3 {[%emt 0:00:51]} 49. d6 {[%emt 0:00:15]} f2 {[%emt 0:07:06]} 50. Rf8 {[%emt 0:00:06]} b4 {[%emt 0:00:11]} 51. Ke7 {[%emt 0:00:29]} c3 {[%emt 0:00:09]} 52. bxc3 {[%emt 0:00:04]} bxc3 {[%emt 0:00:04]} 53. d7 {[%emt 0:00:18]} c2 {[%emt 0:00:08]} 54. Rc8 {[%emt 0:01:06]} (54. d8=R $2 {ist das falsche Schlagen.} c1=Q (54... c1=B 55. Rf6 $18) 55. Rc8 f1=Q $19) 54... f1=Q {[%emt 0:03:46]} 55. Rxc2+ {[%emt 0:00:06]} (55. d8=B $2 {geht unter.} c1=Q (55... c1=B $2 56. a4 $19) (55... c1=R $2 56. Rxc1 Qxc1 57. a4 $19) 56. Rxc1 Qxc1 $19) 55... Kg3 {[%emt 0:00:57]} 56. d8=Q {[%emt 0:00:15]} (56. d8=B $2 {zu gefräßig.} Qe1+ 57. Kf7 Qf1+ 58. Bf6 Qf5 $19) 56... Qe1+ {[%emt 0:00:03]} 57. Kf7 {[%emt 0:00:21]} Qf1+ {[%emt 0:00:16]} 58. Qf6 {[%emt 0:01:15] Gewichteter Fehlerwert: Weiß=0.18 (sehr präzise) /Schwarz=0.45.  Verlustzug:     	---       	Schwarz=2     Fehler:       	Weiß=6     	Schwarz=7     Ungenau:       	Weiß=1     	Schwarz=1     OK:         	Weiß=10    	Schwarz=11    Bester:       	Weiß=4     	Schwarz=4     Stark:        	Weiß=1     	---} 1-0

[Event "Mitropa Cup Women 2024"]
[Site "Apolda"]
[Date "2024.02.22"]
[Round "8.20"]
[White "Mihelic, Vesna"]
[Black "Dolzhykova, Kateryna"]
[Result "1/2-1/2"]
[ECO "B52"]
[WhiteElo "2112"]
[BlackElo "2227"]
[Annotator "TA"]
[PlyCount "93"]
[EventDate "2024.02.15"]
[EventType "team-tourn"]
[EventCountry "GER"]
[SourceTitle "playchess.com"]
[Source "ChessBase"]
[SourceQuality "1"]
[WhiteTeam "Slovenia"]
[BlackTeam "Germany"]
[WhiteTeamCountry "SLO"]
[BlackTeamCountry "GER"]
[TimeControl "40/5400+30:1800+30"]

{[%evp 20,93,19,2,24,33,12,18,44,40,49,52,55,28,59,48,83,39,50,31,78,68,65,25,95,80,204,213,204,210,202,90,93,90,92,94,93,101,88,87,99,93,93,91,102,100,131,35,37,33,42,31,34,33,84,31,22,37,30,0,0,0,29,33,43,24,37,23,23,29,20,0,0,0,0,-8]} 1. e4 {[%emt 0:00:03]} c5 {[%emt 0:00:04]} 2. Nf3 {[%emt 0:00:06]} d6 {[%emt 0:00:03]} 3. Bb5+ {[%emt 0:00:08]} Bd7 {[%emt 0:00:05]} 4. Bxd7+ {[%emt 0:00:06]} Qxd7 {[%emt 0:00:08]} 5. c4 {[%emt 0:00:13]} Nc6 {[%emt 0:01:02]} 6. d4 {[%emt 0:01:36]} cxd4 {[%emt 0:00:14]} 7. Nxd4 {[%emt 0:00:08]} Nf6 {[%emt 0:00:08]} 8. Nc3 {[%emt 0:00:15]} g6 {[%emt 0:00:10]} 9. b3 {[%emt 0:00:23]} Bg7 {[%emt 0:03:29]} 10. Bb2 {[%emt 0:00:14]} O-O {[%emt 0:17:38]} 11. O-O {[%emt 0:00:11]} a6 {[%emt 0:04:28]} 12. Nxc6 {[%emt 0:00:32]} bxc6 {[%emt 0:03:02]} 13. Na4 {[%emt 0:01:44] und nun wäre Nb6 stark für Weiss.} Qe6 {[%emt 0:03:20]} ({Ein No Go ist} 13... Nxe4 $6 14. Bxg7 (14. Nb6 Qa7 $18) 14... Kxg7 15. Nb6 $16) 14. Re1 {[%emt 0:04:00]} Nd7 {[%emt 0:06:02]} 15. Bxg7 {[%emt 0:01:54]} Kxg7 {[%emt 0:00:02]} 16. Rc1 {[%emt 0:10:05][%cal Ba1c1,Bc1c3,Bc3h3][%mdl 32]} c5 {[%emt 0:10:35]} 17. Rc3 {[%emt 0:15:02]} Rae8 {[%emt 0:04:20]} 18. Qd2 {[%emt 0:08:43][%cal Oe4e5]} Ne5 {[%emt 0:08:00]} 19. Nb6 {[%emt 0:05:43]} Nc6 {[%emt 0:05:52]} (19... f6 $14 {scheint genauer.}) 20. Nd5 {[%emt 0:03:16]} Qe5 {[%emt 0:00:55]} 21. Rh3 {[%emt 0:02:44] Weiss droht Qh6+ und Matt.} h5 {[%emt 0:00:36]} (21... Kh8 $11) 22. Kh1 {[%emt 0:08:12]} Rd8 {[%emt 0:04:40]} (22... Kg8 $16) 23. f4 $18 {[%emt 0:01:28][%cal Bf2f4,Bf4f5][%mdl 32]} Qe6 {[%emt 0:00:13] [#]} 24. f5 $1 {[%emt 0:03:49][%mdl 512]} Qe5 {[%emt 0:00:17]} 25. Qg5 {[%emt 0:07:27]} (25. Nf4 $18 {[%cal Of4h5] Beabsichtigt Nxh5+! und Matt.} Rg8 26. Rf1) 25... Rh8 $16 {[%emt 0:03:30]} 26. Rf1 {[%emt 0:06:25][%cal Be1f1,Bf1f5,Bf5g5][%mdl 32]} e6 {[%emt 0:10:43]} 27. Nf4 {[%emt 0:02:07][%cal Of4e6] Nxe6+! ist eine echte Drohung. Schach mit Chili. Weiß steht aktiver.} exf5 {[%emt 0:03:18]} 28. exf5 {[%emt 0:07:50]} (28. Rxh5 $2 {zu gefräßig.} fxe4 (28... Qxe4 29. h3 $17) 29. Kg1 Qxg5 30. Rxg5 Nd4 $19) 28... Qxf5 {[%emt 0:00:11]} 29. Nxh5+ {[%emt 0:04:19]} Rxh5 {[%emt 0:00:02]} 30. Rxf5 {[%emt 0:00:18]} Rxg5 {[%emt 0:00:04]} 31. Rxg5 {[%emt 0:00:02][%mdl 4096] Endspiel. KRR-KRN} Re8 {[%emt 0:00:02][%cal Re8e1]} 32. Kg1 {[%emt 0:00:37]} Nd4 {[%emt 0:00:59]} 33. Rd3 {[%emt 0:02:53]} ({Vorzuziehen ist} 33. Kf1 $16) 33... Re1+ $14 {[%emt 0:03:09]} 34. Kf2 {[%emt 0:00:06]} Re2+ {[%emt 0:00:03]} 35. Kf1 {[%emt 0:02:21][%cal Od3d4]} Rxa2 {[%emt 0:00:08]} 36. Rd5 {[%emt 0:01:55][%cal Oh2h3]} a5 {[%emt 0:00:51]} ({Günstiger ist} 36... Ra1+ $14 37. Kf2 Ra2+ 38. Kg3 Kf8) 37. Rxd6 {[%emt 0:00:24]} (37. h3 $16) 37... Ra1+ {[%emt 0:01:44]} 38. Kf2 {[%emt 0:00:02]} Ra2+ {[%emt 0:00:01]} 39. Kf1 {[%emt 0:01:57] Ra6 wäre nun fies.} Ra1+ {[%emt 0:00:05]} 40. Kf2 {[%emt 0:00:04] Und Ra6 würde nun gewinnen.} Ra2+ {[%emt 0:00:02]} 41. Ke1 {[%emt 0:07:29]} Rxg2 {[%emt 0:01:12]} 42. Rd5 {[%emt 0:03:37]} Ne6 {[%emt 0:03:05]} 43. Rd2 {[%emt 0:03:59]} Rg1+ {[%emt 0:00:13]} 44. Kf2 {[%emt 0:00:01]} Rb1 {[%emt 0:00:20]} 45. Ra2 {[%emt 0:01:46] Die Stellung ist ausgeglichen.} Rxb3 {[%emt 0:00:16]} 46. Rxa5 {[%emt 0:00:13]} Rb4 {[%emt 0:03:38]} 47. Rdxc5 {[%emt 0:04:46] Schwarz rettet sich ins Remis.   Gewichteter Fehlerwert: Weiß=0.20 (präzise) /Schwarz=0.18 (sehr präzise) .  Fehler:       	Weiß=3     	Schwarz=4     Ungenau:       	Weiß=3     	Schwarz=4     OK:         	Weiß=10    	Schwarz=14    Bester:       	Weiß=4     	Schwarz=8} 1/2-1/2